[Event "Caplin Hastings Masters 2023-24"]
[Site "Hastings"]
[Date "2023.12.31"]
[Round "4.20"]
[White "Han, Qixiang"]
[Black "Lux, Hugo de Melo"]
[Result "0-1"]
[ECO "D26"]
[WhiteElo "1711"]
[BlackElo "2311"]
[Annotator "RC"]
[PlyCount "126"]
[EventDate "2023.12.18"]
[EventType "swiss"]
[EventCountry "ENG"]
[SourceTitle "playchess.com"]
[Source "ChessBase"]
[SourceQuality "1"]
[TimeControl "40/6000+30:3000+30"]

1. d4 {[%emt 0:00:01]} d5 {[%emt 0:02:10]} 2. c4 {[%emt 0:00:09]} dxc4 {[%emt 0:00:20]} 3. Nf3 {[%emt 0:00:12]} Nf6 {[%emt 0:00:25]} 4. e3 {[%emt 0:00:26]} a6 {[%emt 0:00:05]} 5. Bxc4 {[%emt 0:02:39]} e6 {[%emt 0:00:06]} 6. O-O {[%emt 0:00:31]} Nbd7 {[%emt 0:00:58]} 7. Nc3 {[%emt 0:03:00]} b5 {[%emt 0:00:21]} 8. Bd3 {[%emt 0:00:35]} Bb7 {[%emt 0:00:20]} 9. a3 {[%emt 0:01:28]} c5 {[%emt 0:03:13]} 10. Re1 {[%emt 0:08:33]} Be7 {[%emt 0:05:11]} 11. Bc2 {[%emt 0:10:45]} O-O {[%emt 0:10:49]} 12. Qe2 {[%emt 0:05:18]} cxd4 {[%emt 0:23:53]} 13. exd4 {[%emt 0:00:51]} Nb6 {[%emt 0:15:09]} 14. Bb3 {[%emt 0:10:47]} Rc8 {[%emt 0:06:18]} 15. Bg5 {[%emt 0:17:01]} Nc4 {[%emt 0:04:08]} 16. Bxc4 {[%emt 0:09:09]} bxc4 {[%emt 0:06:58]} 17. Rad1 {[%emt 0:01:56]} h6 {[%emt 0:02:47]} 18. Bh4 {[%emt 0:00:58]} Nd5 {[%emt 0:15:51]} 19. Bxe7 {[%emt 0:02:45]} Qxe7 {[%emt 0:00:05]} 20. Nxd5 {[%emt 0:00:48]} Bxd5 {[%emt 0:00:07]} 21. Ne5 {[%emt 0:03:56]} Qb7 {[%emt 0:00:21]} 22. f3 {[%emt 0:02:13]} Rc7 {[%emt 0:00:38]} 23. Rc1 {[%emt 0:00:46]} Rb8 {[%emt 0:04:49]} 24. Rc2 {[%emt 0:02:01]} Qb3 {[%emt 0:03:31]} 25. Rec1 {[%emt 0:00:46]} Rbc8 {[%emt 0:02:00]} 26. Rc3 {[%emt 0:00:21]} Qb6 {[%emt 0:00:19]} 27. Qf2 {[%emt 0:01:11]} f6 {[%emt 0:01:47]} 28. Ng6 {[%emt 0:00:59]} Qd6 {[%emt 0:00:49]} 29. Qg3 {[%emt 0:01:13]} Qb6 {[%emt 0:00:51]} 30. Qf2 {[%emt 0:00:07]} Rb8 {[%emt 0:00:29]} 31. R1c2 {[%emt 0:03:38]} Qd6 {[%emt 0:00:17]} 32. Qg3 {[%emt 0:00:14]} Qxg3 {[%emt 0:00:33]} 33. hxg3 {[%emt 0:00:03]} Rcb7 {[%emt 0:00:20]} 34. Nf4 {[%emt 0:08:19]} Rxb2 {[%emt 0:00:10]} 35. Ne2 {[%emt 0:00:35]} Rxc2 {[%emt 0:00:18]} 36. Rxc2 {[%emt 0:00:07]} Rb3 {[%emt 0:00:31]} 37. Rc3 {[%emt 0:00:10]} Rb2 {[%emt 0:00:59]} 38. Kf2 {[%emt 0:00:14]} g5 {[%emt 0:00:42]} 39. g4 {[%emt 0:00:38]} Kf7 {[%emt 0:00:06]} 40. g3 {[%emt 0:00:22]} Ke7 {[%emt 0:00:15]} 41. Ke3 {[%emt 0:50:31]} Kd6 {[%emt 0:50:23]} 42. Ng1 {[%emt 0:00:23]} Kc6 {[%emt 0:01:28]} 43. Nh3 {[%emt 0:00:26]} Rb3 {[%emt 0:00:00]} 44. Kd2 {[%emt 0:00:00]} Kb5 {[%emt 0:00:00]} 45. Nf2 {[%emt 0:00:00]} Bxf3 {[%emt 0:00:00]} 46. Kc2 {[%emt 0:00:00]} Bd5 {[%emt 0:00:00]} 47. Nd1 {[%emt 0:00:00]} f5 {[%emt 0:00:00]} 48. gxf5 {[%emt 0:00:00]} exf5 {[%emt 0:00:00]} 49. Ne3 {[%emt 0:00:00]} Be4+ {[%emt 0:00:00]} 50. Kd2 {[%emt 0:00:00]} Rb2+ {[%emt 0:00:00]} 51. Kc1 {[%emt 0:00:00]} Rb1+ {[%emt 0:00:00]} 52. Kd2 {[%emt 0:00:00]} Bd3 {[%emt 0:00:00]} 53. d5 {[%emt 0:00:00]} Rb2+ {[%emt 0:00:00]} 54. Kc1 {[%emt 0:00:00]} Rb1+ {[%emt 0:00:00]} 55. Kd2 {[%emt 0:00:00]} f4 {[%emt 0:00:00]} 56. gxf4 {[%emt 0:00:00]} gxf4 {[%emt 0:00:00]} 57. Ng4 {[%emt 0:00:00]} Rb2+ {[%emt 0:00:00]} 58. Kc1 {[%emt 0:00:00]} Re2 {[%emt 0:00:00]} 59. a4+ {[%emt 0:00:00]} Kb4 {[%emt 0:00:00]} 60. Rxd3 {[%emt 0:00:00]} cxd3 {[%emt 0:00:00]} 61. d6 {[%emt 0:00:00]} Kc3 {[%emt 0:00:00]} 62. Kd1 {[%emt 0:00:00]} Rg2 {[%emt 0:00:00]} 63. d7 {[%emt 0:00:00]} Rg1# {[%emt 0:00:00]} 0-1

[Event "Caplin Hastings Masters 2023-24"]
[Site "Hastings"]
[Date "2023.12.31"]
[Round "4.21"]
[White "Rudd, Jack"]
[Black "Banerjee, Supratit"]
[Result "1/2-1/2"]
[ECO "D36"]
[WhiteElo "2314"]
[BlackElo "1974"]
[Annotator "RC"]
[PlyCount "131"]
[EventDate "2023.12.18"]
[EventType "swiss"]
[EventCountry "ENG"]
[SourceTitle "playchess.com"]
[Source "ChessBase"]
[SourceQuality "1"]
[TimeControl "40/6000+30:3000+30"]

1. d4 {[%emt 0:00:01]} d5 {[%emt 0:00:13]} 2. c4 {[%emt 0:00:05]} e6 {[%emt 0:00:05]} 3. Nc3 {[%emt 0:00:04]} Be7 {[%emt 0:00:11]} 4. Nf3 {[%emt 0:00:07]} Nf6 {[%emt 0:02:23]} 5. cxd5 {[%emt 0:00:15]} exd5 {[%emt 0:01:56]} 6. Bg5 {[%emt 0:00:09]} c6 {[%emt 0:01:17]} 7. Qc2 {[%emt 0:00:07]} O-O {[%emt 0:01:33]} 8. e3 {[%emt 0:00:21]} Nbd7 {[%emt 0:02:25]} 9. Bd3 {[%emt 0:00:07]} Re8 {[%emt 0:00:32]} 10. O-O {[%emt 0:00:07]} Nf8 {[%emt 0:02:43]} 11. Bxf6 {[%emt 0:00:37]} Bxf6 {[%emt 0:00:29]} 12. b4 {[%emt 0:00:05]} Bg4 {[%emt 0:05:38]} 13. Nd2 {[%emt 0:00:54]} Qd6 {[%emt 0:01:27]} 14. Rab1 {[%emt 0:00:11]} Rac8 {[%emt 0:05:31]} 15. Bf5 {[%emt 0:00:47]} Bxf5 {[%emt 0:04:59]} 16. Qxf5 {[%emt 0:00:17]} Qe6 {[%emt 0:00:54]} 17. Qf3 {[%emt 0:01:02]} Ng6 {[%emt 0:05:34]} 18. g3 {[%emt 0:00:56]} Ne7 {[%emt 0:02:17]} 19. Nb3 {[%emt 0:00:10]} b6 {[%emt 0:03:16]} 20. Rfc1 {[%emt 0:02:04]} Red8 {[%emt 0:08:04]} 21. Ne2 {[%emt 0:03:18]} Qd6 {[%emt 0:14:34]} 22. a3 {[%emt 0:00:42]} g6 {[%emt 0:04:37]} 23. Nf4 {[%emt 0:00:14]} Bg7 {[%emt 0:00:18]} 24. Nd3 {[%emt 0:01:01]} Nf5 {[%emt 0:01:16]} 25. Rc2 {[%emt 0:00:40]} Qd7 {[%emt 0:06:43]} 26. Rbc1 {[%emt 0:00:40]} Nd6 {[%emt 0:01:01]} 27. Ne5 {[%emt 0:02:16]} Bxe5 {[%emt 0:00:19]} 28. dxe5 {[%emt 0:00:06]} Nc4 {[%emt 0:00:07]} 29. Qf6 {[%emt 0:00:14]} Qe6 {[%emt 0:01:24]} 30. Qxe6 {[%emt 0:00:37]} fxe6 {[%emt 0:00:09]} 31. f4 {[%emt 0:00:05]} Rc7 {[%emt 0:03:26]} 32. Nd4 {[%emt 0:00:18]} Kf7 {[%emt 0:00:41]} 33. Kf2 {[%emt 0:00:20]} Rdc8 {[%emt 0:01:40]} 34. a4 {[%emt 0:01:49]} a6 {[%emt 0:01:23]} 35. e4 {[%emt 0:00:22]} c5 {[%emt 0:00:20]} 36. Nxe6 {[%emt 0:00:13]} Kxe6 {[%emt 0:06:00]} 37. exd5+ {[%emt 0:00:24]} Kxd5 {[%emt 0:00:06]} 38. Rxc4 {[%emt 0:00:07]} g5 {[%emt 0:00:33]} 39. Ke3 {[%emt 0:01:03]} Rc6 {[%emt 0:05:01]} 40. bxc5 {[%emt 0:01:16]} bxc5 {[%emt 0:00:17]} 41. R4c2 {[%emt 0:50:20]} gxf4+ {[%emt 0:51:14]} 42. gxf4 {[%emt 0:00:07]} Rb6 {[%emt 0:00:16]} 43. Rd1+ {[%emt 0:00:20]} Ke6 {[%emt 0:00:17]} 44. Rc4 {[%emt 0:00:30]} Kf5 {[%emt 0:00:34]} 45. Rd3 {[%emt 0:02:04]} Rh6 {[%emt 0:00:23]} 46. h4 {[%emt 0:06:22]} Rxh4 {[%emt 0:03:13]} 47. Rd6 {[%emt 0:00:42]} Rh3+ {[%emt 0:00:07]} 48. Kf2 {[%emt 0:00:05]} Rb8 {[%emt 0:00:34]} 49. Kg2 {[%emt 0:00:52]} Ra3 {[%emt 0:00:24]} 50. Rf6+ {[%emt 0:01:31]} Kg4 {[%emt 0:00:11]} 51. f5+ {[%emt 0:00:07]} Kg5 {[%emt 0:00:07]} 52. Rc2 {[%emt 0:00:06]} Rxa4 {[%emt 0:00:53]} 53. Rf7 {[%emt 0:02:00]} Rg4+ {[%emt 0:00:10]} 54. Kf2 {[%emt 0:01:29]} Rf4+ {[%emt 0:00:09]} 55. Ke2 {[%emt 0:00:20]} Rxf5 {[%emt 0:00:25]} 56. Re7 {[%emt 0:00:08]} Rf4 {[%emt 0:04:41]} 57. Rxc5 {[%emt 0:01:29]} Rb5 {[%emt 0:01:34]} 58. Rxb5 {[%emt 0:01:17]} axb5 {[%emt 0:00:08]} 59. Ke3 {[%emt 0:00:04]} Rc4 {[%emt 0:00:09]} 60. Rf7 {[%emt 0:00:33]} Kg6 {[%emt 0:00:30]} 61. Rf6+ {[%emt 0:01:51]} Kg7 {[%emt 0:00:32]} 62. Kd3 {[%emt 0:01:13]} h5 {[%emt 0:01:03]} 63. Rb6 {[%emt 0:00:26]} Rb4 {[%emt 0:00:18]} 64. Kc3 {[%emt 0:00:56]} Rc4+ {[%emt 0:00:07]} 65. Kd3 {[%emt 0:00:05]} Rb4 {[%emt 0:00:07]} 66. Kc3 {[%emt 0:00:06]} 1/2-1/2

[Event "Caplin Hastings Masters 2023-24"]
[Site "Hastings"]
[Date "2023.12.31"]
[Round "4.22"]
[White "Bozinakis, Pavlos"]
[Black "Fryer, David W"]
[Result "1-0"]
[ECO "C30"]
[WhiteElo "2274"]
[BlackElo "1914"]
[Annotator "RC"]
[PlyCount "61"]
[EventDate "2023.12.18"]
[EventType "swiss"]
[EventCountry "ENG"]
[SourceTitle "playchess.com"]
[Source "ChessBase"]
[SourceQuality "1"]
[TimeControl "40/6000+30:3000+30"]

1. e4 {[%emt 0:00:05]} d6 {[%emt 0:00:10]} 2. Nc3 {[%emt 0:03:32]} Nf6 {[%emt 0:00:24]} 3. f4 {[%emt 0:00:41]} e5 {[%emt 0:01:21]} 4. Nf3 {[%emt 0:00:42]} Nbd7 {[%emt 0:01:51]} 5. Bc4 {[%emt 0:01:09]} Be7 {[%emt 0:00:31]} 6. d3 {[%emt 0:07:25]} c6 {[%emt 0:00:52]} 7. O-O {[%emt 0:01:57]} b5 {[%emt 0:04:23]} 8. Bb3 {[%emt 0:00:09]} exf4 {[%emt 0:01:50]} 9. Ng5 {[%emt 0:11:51]} O-O {[%emt 0:03:24]} 10. Bxf4 {[%emt 0:00:11]} Nc5 {[%emt 0:02:01]} 11. Bxf7+ {[%emt 0:02:04]} Rxf7 {[%emt 0:01:36]} 12. Nxf7 {[%emt 0:00:17]} Kxf7 {[%emt 0:00:19]} 13. d4 {[%emt 0:02:02]} Ncxe4 {[%emt 0:07:22]} 14. Nxe4 {[%emt 0:00:09]} Nxe4 {[%emt 0:00:19]} 15. Bxd6+ {[%emt 0:00:43]} Kg8 {[%emt 0:02:54]} 16. Bxe7 {[%emt 0:00:37]} Qxe7 {[%emt 0:00:57]} 17. Qe2 {[%emt 0:01:13]} Bb7 {[%emt 0:08:02]} 18. Rae1 {[%emt 0:04:35]} c5 {[%emt 0:05:07]} 19. Qxb5 {[%emt 0:01:28]} Rd8 {[%emt 0:01:08]} 20. Qb3+ {[%emt 0:02:02]} c4 {[%emt 0:03:23]} 21. Qxc4+ {[%emt 0:01:04]} Bd5 {[%emt 0:00:27]} 22. Qd3 {[%emt 0:01:06]} Qe6 {[%emt 0:17:01]} 23. c4 {[%emt 0:02:22]} Ba8 {[%emt 0:05:10]} 24. d5 {[%emt 0:02:09]} Qb6+ {[%emt 0:01:10]} 25. Qe3 {[%emt 0:00:09]} Qxe3+ {[%emt 0:00:49]} 26. Rxe3 {[%emt 0:00:10]} Nd6 {[%emt 0:01:25]} 27. b3 {[%emt 0:00:33]} Re8 {[%emt 0:00:52]} 28. Rxe8+ {[%emt 0:00:41]} Nxe8 {[%emt 0:00:06]} 29. Kf2 {[%emt 0:00:41]} Kf7 {[%emt 0:00:34]} 30. Ke3+ {[%emt 0:00:08]} Ke7 {[%emt 0:00:13]} 31. Kd4 {[%emt 0:00:07]} 1-0

[Event "Caplin Hastings Masters 2023-24"]
[Site "Hastings"]
[Date "2023.12.31"]
[Round "4.23"]
[White "Norinkeviciute, Rasa"]
[Black "Beaumont, Chris R"]
[Result "0-1"]
[ECO "A38"]
[WhiteElo "1905"]
[BlackElo "2236"]
[Annotator "RC"]
[PlyCount "128"]
[EventDate "2023.12.18"]
[EventType "swiss"]
[EventCountry "ENG"]
[SourceTitle "playchess.com"]
[Source "ChessBase"]
[SourceQuality "1"]
[TimeControl "40/6000+30:3000+30"]

1. c4 {[%emt 0:00:58]} g6 {[%emt 0:00:13]} 2. g3 {[%emt 0:00:37]} Bg7 {[%emt 0:00:08]} 3. Bg2 {[%emt 0:00:08]} c5 {[%emt 0:00:59]} 4. Nc3 {[%emt 0:00:22]} Nc6 {[%emt 0:00:08]} 5. Nf3 {[%emt 0:00:58]} Nf6 {[%emt 0:00:19]} 6. e4 {[%emt 0:02:01]} O-O {[%emt 0:00:24]} 7. O-O {[%emt 0:00:13]} d6 {[%emt 0:00:22]} 8. h3 {[%emt 0:07:16]} Rb8 {[%emt 0:00:29]} 9. d4 {[%emt 0:02:21]} cxd4 {[%emt 0:02:33]} 10. Nxd4 {[%emt 0:00:10]} Nxe4 {[%emt 0:00:28]} 11. Nxe4 {[%emt 0:07:19]} Nxd4 {[%emt 0:00:52]} 12. Be3 {[%emt 0:00:45]} Nc6 {[%emt 0:08:11]} 13. Qe2 {[%emt 0:03:04]} b6 {[%emt 0:24:32]} 14. Rad1 {[%emt 0:08:14]} Bb7 {[%emt 0:02:07]} 15. f4 {[%emt 0:04:12]} Qc8 {[%emt 0:06:43]} 16. Rc1 {[%emt 0:12:50]} Nd4 {[%emt 0:32:13]} 17. Qd2 {[%emt 0:04:01]} Nf5 {[%emt 0:00:56]} 18. Bf2 {[%emt 0:02:06]} h5 {[%emt 0:00:53]} 19. b3 {[%emt 0:02:28]} Bc6 {[%emt 0:03:44]} 20. Rfe1 {[%emt 0:16:23]} Qb7 {[%emt 0:01:32]} 21. Kh2 {[%emt 0:05:43]} Rbd8 {[%emt 0:01:05]} 22. Qe2 {[%emt 0:04:14]} d5 {[%emt 0:03:12]} 23. cxd5 {[%emt 0:01:01]} Bxd5 {[%emt 0:00:23]} 24. Bh1 {[%emt 0:11:13]} e6 {[%emt 0:07:54]} 25. g4 {[%emt 0:03:39]} hxg4 {[%emt 0:01:24]} 26. hxg4 {[%emt 0:00:03]} Nd6 {[%emt 0:06:11]} 27. Ng5 {[%emt 0:01:56]} Bxh1 {[%emt 0:01:06]} 28. Rxh1 {[%emt 0:00:09]} Qe7 {[%emt 0:01:25]} 29. Qe3 {[%emt 0:04:59]} e5 {[%emt 0:00:50]} 30. Qh3 {[%emt 0:01:37]} Rfe8 {[%emt 0:00:03]} 31. Rhe1 {[%emt 0:04:01]} Qf6 {[%emt 0:00:22]} 32. Nh7 {[%emt 0:00:40]} Qxf4+ {[%emt 0:00:17]} 33. Bg3 {[%emt 0:00:39]} Qd2+ {[%emt 0:01:49]} 34. Kh1 {[%emt 0:00:09]} Ne4 {[%emt 0:00:38]} 35. Bh4 {[%emt 0:00:47]} g5 {[%emt 0:01:49]} 36. Rcd1 {[%emt 0:00:37]} Qf4 {[%emt 0:00:53]} 37. Rxd8 {[%emt 0:00:16]} Rxd8 {[%emt 0:00:03]} 38. Rf1 {[%emt 0:00:04]} Qd2 {[%emt 0:00:43]} 39. Qf3 {[%emt 0:00:53]} Kxh7 {[%emt 0:01:25]} 40. Qxe4+ {[%emt 0:00:22]} Kg8 {[%emt 0:00:02]} 41. Be1 {[%emt 0:08:14]} Qd5 {[%emt 0:07:47]} 42. Qxd5 {[%emt 0:01:24]} Rxd5 {[%emt 0:00:02]} 43. Kg2 {[%emt 0:00:07]} Rd4 {[%emt 0:01:53]} 44. Kg3 {[%emt 0:00:35]} Rf4 {[%emt 0:03:58]} 45. Rh1 {[%emt 0:00:28]} e4 {[%emt 0:00:59]} 46. Bd2 {[%emt 0:01:02]} Rf3+ {[%emt 0:00:12]} 47. Kg2 {[%emt 0:00:15]} f6 {[%emt 0:00:18]} 48. Re1 {[%emt 0:01:47]} Rd3 {[%emt 0:00:32]} 49. Bb4 {[%emt 0:02:38]} Bf8 {[%emt 0:02:40]} 50. Rxe4 {[%emt 0:03:44]} Bxb4 {[%emt 0:00:37]} 51. Rxb4 {[%emt 0:00:04]} Rd2+ {[%emt 0:00:09]} 52. Kf3 {[%emt 0:00:21]} Rxa2 {[%emt 0:00:09]} 53. Rd4 {[%emt 0:02:08]} Kf7 {[%emt 0:00:45]} 54. Ke4 {[%emt 0:00:49]} Ke6 {[%emt 0:00:53]} 55. Rd8 {[%emt 0:00:29]} Re2+ {[%emt 0:00:22]} 56. Kd3 {[%emt 0:00:49]} Rg2 {[%emt 0:00:20]} 57. Re8+ {[%emt 0:00:41]} Kd5 {[%emt 0:01:16]} 58. Rf8 {[%emt 0:01:46]} Rg3+ {[%emt 0:00:52]} 59. Kc2 {[%emt 0:00:07]} Rf3 {[%emt 0:00:57]} 60. Kd2 {[%emt 0:04:22]} Kc5 {[%emt 0:01:37]} 61. Rf7 {[%emt 0:03:22]} a5 {[%emt 0:00:23]} 62. Ke2 {[%emt 0:00:52]} Rf4 {[%emt 0:00:11]} 63. Kd3 {[%emt 0:01:13]} Kb4 {[%emt 0:00:23]} 64. Kc2 {[%emt 0:00:27]} b5 {[%emt 0:00:17]} 0-1

[Event "Caplin Hastings Masters 2023-24"]
[Site "Hastings"]
[Date "2023.12.31"]
[Round "4.24"]
[White "Teh, Wee Zhun"]
[Black "Byron, Alan M"]
[Result "1/2-1/2"]
[ECO "D00"]
[WhiteElo "1858"]
[BlackElo "2134"]
[Annotator "RC"]
[PlyCount "81"]
[EventDate "2023.12.18"]
[EventType "swiss"]
[EventCountry "ENG"]
[SourceTitle "playchess.com"]
[Source "ChessBase"]
[SourceQuality "1"]
[TimeControl "40/6000+30:3000+30"]

1. d4 {[%emt 0:00:09]} Nf6 {[%emt 0:00:10]} 2. Nc3 {[%emt 0:01:00]} d5 {[%emt 0:00:14]} 3. Bf4 {[%emt 0:00:19]} e6 {[%emt 0:01:04]} 4. Nb5 {[%emt 0:00:28]} Na6 {[%emt 0:00:21]} 5. e3 {[%emt 0:00:35]} c6 {[%emt 0:01:31]} 6. Nc3 {[%emt 0:00:26]} Nb8 {[%emt 0:01:01]} 7. a3 {[%emt 0:04:03]} Bd6 {[%emt 0:01:06]} 8. Nf3 {[%emt 0:02:33]} Qc7 {[%emt 0:05:27]} 9. Bxd6 {[%emt 0:04:37]} Qxd6 {[%emt 0:00:43]} 10. Ne5 {[%emt 0:00:26]} b6 {[%emt 0:02:01]} 11. Bd3 {[%emt 0:07:20]} Ba6 {[%emt 0:01:35]} 12. Bxa6 {[%emt 0:06:38]} Nxa6 {[%emt 0:00:08]} 13. O-O {[%emt 0:01:27]} O-O {[%emt 0:02:19]} 14. Qd3 {[%emt 0:03:03]} Nc7 {[%emt 0:01:51]} 15. f4 {[%emt 0:02:14]} Nd7 {[%emt 0:11:48]} 16. Rf3 {[%emt 0:20:25]} f5 {[%emt 0:04:30]} 17. g4 {[%emt 0:08:47]} Nxe5 {[%emt 0:06:31]} 18. fxe5 {[%emt 0:01:22]} Qd7 {[%emt 0:00:11]} 19. Raf1 {[%emt 0:10:56]} g6 {[%emt 0:00:23]} 20. g5 {[%emt 0:04:18]} Qe7 {[%emt 0:03:04]} 21. Rg3 {[%emt 0:00:46]} c5 {[%emt 0:02:24]} 22. Ne2 {[%emt 0:01:42]} Qd7 {[%emt 0:04:50]} 23. c3 {[%emt 0:02:47]} Qb5 {[%emt 0:01:19]} 24. Qd2 {[%emt 0:02:32]} Rf7 {[%emt 0:10:14]} 25. Nf4 {[%emt 0:02:59]} Rg7 {[%emt 0:00:19]} 26. h4 {[%emt 0:02:37]} Kf7 {[%emt 0:00:59]} 27. Rf2 {[%emt 0:09:12]} Rag8 {[%emt 0:03:21]} 28. Rfg2 {[%emt 0:00:52]} Na6 {[%emt 0:02:32]} 29. h5 {[%emt 0:01:52]} Ke7 {[%emt 0:00:07]} 30. hxg6 {[%emt 0:00:33]} hxg6 {[%emt 0:00:06]} 31. Rh3 {[%emt 0:01:04]} Nb8 {[%emt 0:04:57]} 32. Rgh2 {[%emt 0:02:37]} Nd7 {[%emt 0:10:31]} 33. Rh7 {[%emt 0:04:42]} Nf8 {[%emt 0:02:32]} 34. R7h6 {[%emt 0:01:05]} Qb3 {[%emt 0:03:08]} 35. Kf2 {[%emt 0:00:39]} Kf7 {[%emt 0:02:06]} 36. Ke2 {[%emt 0:00:46]} Nd7 {[%emt 0:01:47]} 37. R6h4 {[%emt 0:00:36]} Nb8 {[%emt 0:04:22]} 38. Kf3 {[%emt 0:00:25]} Nc6 {[%emt 0:02:37]} 39. Kg3 {[%emt 0:00:35]} Qb5 {[%emt 0:08:23]} 40. Rh1 {[%emt 0:00:31]} Na5 {[%emt 0:01:13]} 41. R4h2 {[%emt 0:30:11]} 1/2-1/2

[Event "Caplin Hastings Masters 2023-24"]
[Site "Hastings"]
[Date "2023.12.31"]
[Round "4.25"]
[White "Verbytski, Oleg"]
[Black "Southcott-Moyers, Indy"]
[Result "1/2-1/2"]
[ECO "A35"]
[WhiteElo "1771"]
[BlackElo "2123"]
[Annotator "RC"]
[PlyCount "63"]
[EventDate "2023.12.18"]
[EventType "swiss"]
[EventCountry "ENG"]
[SourceTitle "playchess.com"]
[Source "ChessBase"]
[SourceQuality "1"]
[TimeControl "40/6000+30:3000+30"]

1. e4 {[%emt 0:00:01]} c6 {[%emt 0:00:14]} 2. d4 {[%emt 0:00:01]} d5 {[%emt 0:00:05]} 3. exd5 {[%emt 0:00:04]} cxd5 {[%emt 0:00:04]} 4. c4 {[%emt 0:00:04]} Nf6 {[%emt 0:03:42]} 5. Nc3 {[%emt 0:00:10]} Nc6 {[%emt 0:01:53]} 6. Nf3 {[%emt 0:00:07]} g6 {[%emt 0:09:27]} 7. cxd5 {[%emt 0:00:06]} Nxd5 {[%emt 0:00:13]} 8. Bc4 {[%emt 0:00:11]} e6 {[%emt 0:07:39]} 9. Bxd5 {[%emt 0:00:05]} exd5 {[%emt 0:00:06]} 10. O-O {[%emt 0:00:07]} Be6 {[%emt 0:02:50]} 11. Bg5 {[%emt 0:01:12]} Be7 {[%emt 0:02:46]} 12. Bxe7 {[%emt 0:00:04]} Qxe7 {[%emt 0:08:06]} 13. Re1 {[%emt 0:00:04]} Qd7 {[%emt 0:00:10]} 14. Qd2 {[%emt 0:00:30]} O-O {[%emt 0:01:39]} 15. Rac1 {[%emt 0:13:17]} f6 {[%emt 0:09:23]} 16. Re3 {[%emt 0:06:49]} Rfe8 {[%emt 0:06:02]} 17. Rce1 {[%emt 0:02:55]} Bf7 {[%emt 0:02:09]} 18. h3 {[%emt 0:01:54]} Kg7 {[%emt 0:01:20]} 19. b3 {[%emt 0:07:08]} Rac8 {[%emt 0:02:24]} 20. Rxe8 {[%emt 0:03:58]} Rxe8 {[%emt 0:00:09]} 21. Rxe8 {[%emt 0:00:44]} Qxe8 {[%emt 0:01:29]} 22. Qe3 {[%emt 0:00:05]} Qxe3 {[%emt 0:05:54]} 23. fxe3 {[%emt 0:00:08]} Kf8 {[%emt 0:01:12]} 24. Kf2 {[%emt 0:02:07]} Ke7 {[%emt 0:00:12]} 25. Ne1 {[%emt 0:00:10]} Kd6 {[%emt 0:04:38]} 26. Nd3 {[%emt 0:00:18]} b6 {[%emt 0:00:47]} 27. Nf4 {[%emt 0:04:48]} g5 {[%emt 0:02:50]} 28. Nd3 {[%emt 0:00:46]} Bg6 {[%emt 0:00:38]} 29. Ke2 {[%emt 0:01:01]} h5 {[%emt 0:02:01]} 30. g3 {[%emt 0:02:24]} Bxd3+ {[%emt 0:04:46]} 31. Kxd3 {[%emt 0:00:09]} f5 {[%emt 0:00:15]} 32. h4 {[%emt 0:07:49]} 1/2-1/2

[Event "Caplin Hastings Masters 2023-24"]
[Site "Hastings"]
[Date "2023.12.31"]
[Round "4.26"]
[White "Evenshaug, Amadeus Hestvik"]
[Black "Ahn, Sungmin"]
[Result "0-1"]
[ECO "C11"]
[WhiteElo "2041"]
[BlackElo "1836"]
[Annotator "RC"]
[PlyCount "88"]
[EventDate "2023.12.18"]
[EventType "swiss"]
[EventCountry "ENG"]
[SourceTitle "playchess.com"]
[Source "ChessBase"]
[SourceQuality "1"]
[TimeControl "40/6000+30:3000+30"]

1. e4 {[%emt 0:00:04]} e6 {[%emt 0:00:31]} 2. d4 {[%emt 0:01:37]} d5 {[%emt 0:00:09]} 3. Nc3 {[%emt 0:00:15]} Nf6 {[%emt 0:01:40]} 4. e5 {[%emt 0:00:33]} Nfd7 {[%emt 0:00:20]} 5. f4 {[%emt 0:00:06]} c5 {[%emt 0:00:09]} 6. Nf3 {[%emt 0:00:15]} Nc6 {[%emt 0:00:12]} 7. Be3 {[%emt 0:00:21]} Be7 {[%emt 0:01:15]} 8. Qd2 {[%emt 0:01:27]} O-O {[%emt 0:00:19]} 9. O-O-O {[%emt 0:06:33]} c4 {[%emt 0:02:48]} 10. h4 {[%emt 0:01:42]} b5 {[%emt 0:03:59]} 11. Ne2 {[%emt 0:24:46]} b4 {[%emt 0:23:25]} 12. b3 {[%emt 0:09:34]} c3 {[%emt 0:09:34]} 13. Qe1 {[%emt 0:01:51]} a5 {[%emt 0:00:56]} 14. Kb1 {[%emt 0:05:06]} a4 {[%emt 0:00:36]} 15. Nc1 {[%emt 0:04:06]} axb3 {[%emt 0:12:55]} 16. cxb3 {[%emt 0:00:47]} Qa5 {[%emt 0:20:36]} 17. Qf2 {[%emt 0:02:56]} Ba6 {[%emt 0:03:43]} 18. Qc2 {[%emt 0:02:23]} Rfc8 {[%emt 0:05:02]} 19. g4 {[%emt 0:07:30]} Na7 {[%emt 0:01:44]} 20. Bd3 {[%emt 0:03:43]} Bxd3 {[%emt 0:01:24]} 21. Nxd3 {[%emt 0:00:19]} Nb5 {[%emt 0:00:16]} 22. Bc1 {[%emt 0:01:13]} Qd8 {[%emt 0:06:27]} 23. Rh2 {[%emt 0:02:47]} Ra7 {[%emt 0:06:01]} 24. Nc5 {[%emt 0:10:21]} Bxc5 {[%emt 0:01:25]} 25. dxc5 {[%emt 0:00:14]} Rxc5 {[%emt 0:00:32]} 26. Ng5 {[%emt 0:00:12]} Nf8 {[%emt 0:00:15]} 27. f5 {[%emt 0:00:30]} d4 {[%emt 0:00:46]} 28. f6 {[%emt 0:01:38]} gxf6 {[%emt 0:02:17]} 29. exf6 {[%emt 0:00:54]} Rd7 {[%emt 0:00:18]} 30. Rd3 {[%emt 0:00:17]} Re5 {[%emt 0:00:57]} 31. Nf3 {[%emt 0:03:23]} Re3 {[%emt 0:00:36]} 32. a4 {[%emt 0:00:19]} bxa3 {[%emt 0:02:08]} 33. Rxe3 {[%emt 0:00:35]} dxe3 {[%emt 0:00:27]} 34. Ka2 {[%emt 0:01:36]} Qxf6 {[%emt 0:00:43]} 35. Ng5 {[%emt 0:00:41]} Qf4 {[%emt 0:01:01]} 36. Re2 {[%emt 0:02:22]} Nd4 {[%emt 0:00:40]} 37. Bxe3 {[%emt 0:00:14]} Qxe3 {[%emt 0:01:05]} 38. Rxe3 {[%emt 0:00:40]} Nxc2 {[%emt 0:00:04]} 39. Rxc3 {[%emt 0:00:09]} Rd2 {[%emt 0:00:36]} 40. Ne4 {[%emt 0:00:03]} Rg2 {[%emt 0:00:43]} 41. Nf6+ {[%emt 0:50:35]} Kg7 {[%emt 0:50:13]} 42. Nh5+ {[%emt 0:00:48]} Kh6 {[%emt 0:00:00]} 43. Ng3 {[%emt 0:00:00]} Ne3+ {[%emt 0:00:00]} 44. Kxa3 {[%emt 0:00:00]} Rxg3 {[%emt 0:00:00]} 0-1